bitfinex/quotes_BTCUSD_20250620
["timestamp","ask_amount","ask_price","bid_price","bid_amount"]
[1750408610903,1.308e-05,106570.0,106560.0,2.44138031]
[1750408611648,1.308e-05,106570.0,106560.0,2.46955531]
[1750408612125,0.10697851,106580.0,106570.0,1.03356036]
[1750408612368,0.10697851,106580.0,106570.0,1.42796848]
[1750408613056,0.10697851,106580.0,106570.0,1.10775523]
[1750408613288,0.10744831,106580.0,106570.0,1.42796848]
[1750408613512,0.10944831,106580.0,106570.0,1.42796848]
[1750408614288,0.10944831,106580.0,106570.0,1.52691848]
[1750408614507,0.11144831,106580.0,106570.0,1.52691848]
[1750408616142,0.11144831,106580.0,106570.0,1.86316888]
[1750408616378,0.11144831,106580.0,106570.0,2.00661594]
[1750408616594,0.11144831,106580.0,106570.0,2.03352565]
[1750408616799,0.10944831,106580.0,106570.0,2.03352565]
[1750408617358,0.10744831,106580.0,106570.0,2.03352565]
[1750408617575,0.10744831,106580.0,106570.0,1.97844394]
[1750408618830,0.10744831,106580.0,106570.0,1.63844394]
[1750408619736,0.10744831,106580.0,106570.0,1.34214394]
[1750408621289,0.10744831,106580.0,106570.0,1.41528187]
[1750408623076,0.10744831,106580.0,106570.0,1.41524187]
[1750408624249,0.42766156,106580.0,106570.0,0.81520862]
[1750408624458,0.49656386,106580.0,106570.0,0.51163737]
[1750408624652,0.52249009,106580.0,106570.0,0.63122294]
[1750408624903,0.52249009,106580.0,106570.0,0.33320999]
[1750408625119,0.53187192,106580.0,106570.0,0.48956999]
[1750408625335,0.47056156,106580.0,106570.0,0.48956999]
[1750408625592,0.48194339,106580.0,106570.0,0.33320999]
[1750408625922,0.49332565,106580.0,106570.0,0.33320999]
[1750408626059,0.49132565,106580.0,106570.0,0.39429106]
[1750408626267,0.49532565,106580.0,106570.0,0.39429106]
[1750408626489,0.49532556,106580.0,106570.0,0.46853097]
[1750408626703,0.49532556,106580.0,106570.0,0.39429106]
[1750408626704,0.1844944,106580.0,106570.0,0.39429106]
[1750408626939,0.51409,106580.0,106570.0,0.39429106]
[1750408627449,0.51209,106580.0,106570.0,0.23793106]
[1750408627668,0.48394356,106580.0,106570.0,0.39429106]
[1750408627896,0.52750347,106580.0,106570.0,0.45101497]
[1750408628316,0.51812156,106580.0,106570.0,0.45101497]
[1750408628952,0.52750339,106580.0,106570.0,0.45101497]
[1750408629365,0.52750339,106580.0,106570.0,0.29465497]
[1750408629573,0.51812156,106580.0,106570.0,0.29465497]
[1750408629787,0.52750339,106580.0,106570.0,0.45101497]
[1750408630201,0.51812156,106580.0,106570.0,0.45101497]
[1750408630407,0.47656156,106580.0,106570.0,0.5462939]
[1750408630617,0.19790831,106580.0,106570.0,0.5462939]
[1750408630817,0.51812156,106580.0,106570.0,0.5462939]
[1750408631476,0.51812156,106580.0,106570.0,0.3899339]
[1750408631725,0.50522156,106580.0,106570.0,0.3899339]
[1750408631970,0.50522156,106580.0,106570.0,0.5462939]
[1750408632458,0.51812156,106580.0,106570.0,0.5462939]
[1750408632686,0.51943396,106580.0,106570.0,0.5462939]
[1750408633978,0.51943396,106580.0,106570.0,0.5442939]
[1750408636926,0.05444267,106580.0,106570.0,1.2139927]
[1750408637444,0.05444267,106580.0,106570.0,1.26916447]
[1750408637685,0.05244267,106580.0,106570.0,1.24177403]
[1750408638156,0.05244267,106580.0,106570.0,1.24377403]
[1750408638628,0.05244267,106580.0,106570.0,1.58377403]
[1750408638860,0.05244267,106580.0,106570.0,1.58373403]
[1750408639083,0.05244267,106580.0,106570.0,1.56493403]
[1750408639304,0.05244267,106580.0,106570.0,1.30966403]
[1750408639531,0.05244267,106580.0,106570.0,1.46598403]
[1750408640706,0.05244267,106580.0,106570.0,1.49367839]
[1750408643592,0.05244267,106580.0,106570.0,1.33735839]
[1750408643824,0.05244267,106580.0,106570.0,1.49363839]
[1750408646248,0.05244267,106580.0,106570.0,1.88888839]
[1750408646704,0.05244267,106580.0,106570.0,1.90685455]
[1750408647450,0.05244267,106580.0,106570.0,1.95685455]
[1750408647698,0.05244267,106580.0,106570.0,1.87432961]
[1750408647904,0.05244267,106580.0,106570.0,1.93165961]
[1750408649573,0.05244267,106580.0,106570.0,1.03072551]
[1750408649795,0.05244267,106580.0,106570.0,0.65948491]
[1750408650018,0.05244267,106580.0,106570.0,1.10058774]
[1750408650255,0.05244267,106580.0,106570.0,0.78816351]
[1750408650487,0.05362267,106580.0,106570.0,0.59516335]
[1750408650710,0.05362267,106580.0,106570.0,0.75140335]
[1750408651142,0.05362267,106580.0,106570.0,0.44316335]
[1750408651357,0.05362267,106580.0,106570.0,0.60140335]
[1750408651584,0.05362267,106580.0,106570.0,0.4597042]
[1750408652030,0.05362267,106580.0,106570.0,0.6159442]
[1750408652251,0.05562267,106580.0,106570.0,0.6159442]
[1750408653397,0.05444267,106580.0,106570.0,0.4597042]
[1750408653620,0.40463592,106580.0,106570.0,0.41758758]
[1750408653847,0.08442267,106580.0,106570.0,0.57382758]
[1750408654068,0.05562267,106580.0,106570.0,0.57382758]
[1750408654708,0.05444267,106580.0,106570.0,0.57382758]
[1750408655441,0.05562267,106580.0,106570.0,0.57382758]
[1750408655880,0.41753592,106580.0,106570.0,0.41758758]
[1750408656103,0.41753592,106580.0,106570.0,0.57382758]
[1750408656340,0.41753592,106580.0,106570.0,0.32230865]
[1750408656575,0.41753592,106580.0,106570.0,0.002]
[1750408656576,0.66543309,106580.0,106570.0,0.002]
[1750408656812,6.15071202,106580.0,106570.0,0.002]
[1750408657026,6.12191202,106580.0,106570.0,0.12944]
[1750408657238,0.02933164,106560.0,106550.0,0.21585976]
[1750408657456,0.36244481,106560.0,106550.0,0.37209976]
[1750408657919,0.35437309,106560.0,106550.0,0.37209976]
[1750408658145,0.36375712,106560.0,106550.0,0.42808203]
[1750408658368,0.89042655,106560.0,106550.0,0.21585993]
[1750408658589,0.89042655,106560.0,106550.0,0.37209993]
[1750408658817,0.88104296,106560.0,106550.0,0.36571538]
[1750408659056,0.88104296,106560.0,106550.0,0.37510029]
[1750408659278,5.92165911,106560.0,106550.0,0.20947538]
[1750408659502,5.94985411,106560.0,106550.0,0.36575538]
[1750408659728,5.94047008,106560.0,106550.0,0.35637047]
[1750408659953,5.74339757,106560.0,106550.0,0.21886055]
[1750408660168,5.7340139,106560.0,106550.0,0.37514055]
[1750408660403,5.74339749,106560.0,106550.0,0.38152537]
[1750408660641,5.74339749,106560.0,106550.0,0.38452537]
[1750408660862,5.7340139,106560.0,106550.0,0.3939101]
[1750408661314,5.7340139,106560.0,106550.0,0.1937053]
[1750408661543,5.41380065,106560.0,106550.0,0.37814002]
[1750408661792,0.39238065,106560.0,106550.0,0.22186002]
[1750408662021,0.0427924,106560.0,106550.0,0.54962389]
[1750408662250,0.0013124,106560.0,106550.0,0.73153405]
[1750408662476,0.0013124,106560.0,106550.0,1.06744815]
[1750408663370,0.0013124,106560.0,106550.0,1.09202392]
[1750408663801,0.0033124,106560.0,106550.0,1.08902392]
[1750408664010,0.0013124,106560.0,106550.0,1.08902392]
[1750408664226,0.0023124,106560.0,106550.0,1.08790392]
[1750408664476,0.0023124,106560.0,106550.0,0.93278392]
[1750408664711,0.0023124,106560.0,106550.0,0.57931067]
[1750408664907,0.0013124,106560.0,106550.0,0.76819067]
[1750408665196,0.0023124,106560.0,106550.0,0.76819067]
[1750408665671,0.0023124,106560.0,106550.0,0.7406149]
[1750408665909,0.0023124,106560.0,106550.0,0.66436996]
[1750408666138,0.0023124,106560.0,106550.0,0.63176996]
[1750408668286,0.40115569,106560.0,106550.0,0.33317926]
[1750408668506,0.41523569,106560.0,106550.0,0.37210002]
[1750408668955,0.41623569,106560.0,106550.0,0.37210002]
[1750408669179,0.40533569,106560.0,106550.0,0.37210002]
[1750408669406,0.40533569,106560.0,106550.0,0.42995942]
[1750408669629,0.40533569,106560.0,106550.0,0.27371942]
[1750408669848,0.0054924,106560.0,106550.0,0.42995942]
[1750408670285,0.0034924,106560.0,106550.0,0.42995942]
[1750408670483,0.0013124,106560.0,106550.0,0.42995942]
[1750408670795,0.0053124,106560.0,106550.0,0.42995942]
[1750408671464,0.0083124,106560.0,106550.0,0.52523835]
[1750408671683,0.0083124,106560.0,106550.0,0.36899835]
[1750408671918,0.0083124,106560.0,106550.0,0.52523835]
[1750408672368,0.0083124,106560.0,106550.0,0.62472183]
[1750408675104,0.0083124,106560.0,106550.0,0.62589183]
[1750408677569,0.0013124,106560.0,106550.0,0.62589183]
[1750408677795,0.0033124,106560.0,106550.0,0.62589183]
[1750408678019,0.0053124,106560.0,106550.0,0.62589183]
[1750408678839,0.0053124,106560.0,106550.0,0.6534676]
[1750408679234,0.0053124,106560.0,106550.0,0.6722676]
[1750408681346,0.0053124,106560.0,106550.0,0.70902776]
[1750408682500,0.0053124,106560.0,106550.0,0.68145199]
[1750408684699,0.00573802,106560.0,106550.0,0.68145199]
[1750408686813,0.00573802,106560.0,106550.0,0.73658916]
[1750408687036,0.00573802,106560.0,106550.0,1.05644689]
[1750408688454,0.00573802,106560.0,106550.0,0.58034916]
[1750408688703,0.00573802,106560.0,106550.0,0.90020689]
[1750408688950,0.00573802,106560.0,106550.0,1.05640689]
[1750408689213,0.00573802,106560.0,106550.0,1.15535689]
[1750408689446,0.00573802,106560.0,106550.0,1.05640689]
[1750408689682,0.00543802,106560.0,106550.0,1.01964673]
[1750408692291,0.0050124,106560.0,106550.0,1.01964673]
[1750408693522,0.0050124,106560.0,106550.0,0.699789]
[1750408693732,0.0050124,106560.0,106550.0,1.01964673]
[1750408697586,0.0050124,106560.0,106550.0,0.699749]
[1750408699762,0.32487013,106560.0,106550.0,0.523619]
[1750408700022,0.0050124,106560.0,106550.0,0.7166957]
[1750408700289,0.0050124,106560.0,106550.0,0.7179157]
[1750408700577,0.0050124,106560.0,106550.0,0.680999]
[1750408701837,0.0050124,106560.0,106550.0,0.71792355]
[1750408702082,0.0050124,106560.0,106550.0,0.680999]
[1750408703754,0.0050124,106560.0,106550.0,0.524839]
[1750408703972,0.0050124,106560.0,106550.0,0.71788709]
[1750408704190,0.0050124,106560.0,106550.0,0.71788766]
[1750408704417,0.32487013,106560.0,106550.0,0.45674741]
[1750408704639,0.65884786,106560.0,106550.0,0.42172238]
[1750408704854,0.33899013,106560.0,106550.0,0.42172238]
[1750408705076,0.33899013,106560.0,106550.0,0.39402265]
[1750408705523,0.33699013,106560.0,106550.0,0.46271451]
[1750408705741,0.36553013,106560.0,106550.0,0.43501478]
[1750408705964,0.36653013,106560.0,106550.0,0.46271451]
[1750408706182,0.36453013,106560.0,106550.0,0.46271451]
[1750408707751,0.36453013,106560.0,106550.0,0.42172238]
[1750408708398,0.36495575,106560.0,106550.0,0.42172238]
[1750408709497,0.38723942,106560.0,106550.0,0.26560238]
[1750408709707,0.36495575,106560.0,106550.0,0.39402265]
[1750408710158,0.36495575,106560.0,106550.0,0.42172238]
[1750408710609,0.36495575,106560.0,106550.0,0.48823688]
[1750408710851,0.36495575,106560.0,106550.0,0.46053715]
[1750408712190,0.36495575,106560.0,106550.0,0.39402265]
[1750408714331,0.36373575,106560.0,106550.0,0.39402265]
[1750408714553,0.32229575,106560.0,106550.0,0.39402265]
[1750408714762,0.36369575,106560.0,106550.0,0.42712265]
[1750408714963,0.36369575,106560.0,106550.0,0.45952265]
[1750408715169,0.36369575,106560.0,106550.0,0.47736806]
[1750408715587,0.36269575,106560.0,106550.0,0.47736806]
[1750408715798,0.36869575,106560.0,106550.0,0.47736806]
[1750408716513,0.04883802,106560.0,106550.0,0.57264699]
[1750408716774,0.04883802,106560.0,106550.0,0.60034672]
[1750408718065,0.00743802,106560.0,106550.0,0.60034672]
[1750408718268,0.04883802,106560.0,106550.0,0.60034672]
[1750408718473,0.00743802,106560.0,106550.0,0.60034672]
[1750408718681,0.04883802,106560.0,106550.0,0.60034672]
[1750408718906,0.32729575,106560.0,106550.0,0.60034672]
[1750408719790,0.36869575,106560.0,106550.0,0.60034672]
[1750408721336,0.36869575,106560.0,106550.0,0.60156672]
[1750408722798,0.36869575,106560.0,106550.0,0.44544672]
[1750408723036,0.36869575,106560.0,106550.0,0.60030672]
[1750408724621,0.36869575,106560.0,106550.0,0.53480672]
[1750408725076,0.36869575,106560.0,106550.0,0.56590672]
[1750408725305,0.36869575,106560.0,106550.0,0.59900672]
[1750408725789,0.36827013,106560.0,106550.0,0.59900672]
[1750408726231,0.0484124,106560.0,106550.0,0.59900672]
[1750408726453,0.36827013,106560.0,106550.0,0.59900672]
[1750408726735,0.36817907,106560.0,106550.0,0.59900672]
[1750408727163,0.36817907,106560.0,106550.0,0.59896672]
[1750408728998,0.36817907,106560.0,106550.0,0.61776672]
[1750408729215,0.36817907,106560.0,106550.0,0.59896672]
[1750408731137,0.00692134,106560.0,106550.0,0.65043623]
[1750408731344,0.00692134,106560.0,106550.0,1.07397634]
[1750408731558,0.00692134,106560.0,106550.0,0.75411861]
[1750408732455,0.00392134,106560.0,106550.0,0.75411861]
[1750408733083,0.00492134,106560.0,106550.0,0.75411861]
[1750408733630,0.00192134,106560.0,106550.0,0.75411861]
[1750408733996,0.00292134,106560.0,106550.0,0.75411861]
[1750408734899,0.00292134,106560.0,106550.0,0.75533861]
[1750408735779,0.00292134,106560.0,106550.0,0.67909367]
[1750408736213,0.00192134,106560.0,106550.0,0.67909367]
[1750408736639,0.00092134,106560.0,106550.0,0.67909367]
[1750408736858,0.00092134,106560.0,106550.0,0.68009367]
[1750408738281,0.00092134,106560.0,106550.0,0.65805104]
[1750408738501,0.00092134,106560.0,106550.0,0.68019597]
[1750408739717,0.00092134,106560.0,106550.0,0.52415597]
[1750408739953,0.00092134,106560.0,106550.0,0.68011597]
[1750408745080,0.00092134,106560.0,106550.0,0.67889597]
[1750408745251,0.6418068,106560.0,106550.0,0.5178873]
[1750408745472,0.6418068,106560.0,106550.0,0.42260837]
[1750408745687,0.6547068,106560.0,106550.0,0.42260837]
[1750408745909,0.33484907,106560.0,106550.0,0.42260837]
[1750408746383,0.33784907,106560.0,106550.0,0.42260837]
[1750408746605,0.33784907,106560.0,106550.0,0.28497461]
[1750408746829,0.66709039,106560.0,106550.0,0.42260837]
[1750408747041,0.33784907,106560.0,106550.0,0.42260837]
[1750408747265,0.33784907,106560.0,106550.0,0.42160837]
[1750408747485,0.00609134,106560.0,106550.0,0.42160837]
[1750408747708,0.32594907,106560.0,106550.0,0.49689519]
[1750408747931,0.32494907,106560.0,106550.0,0.49689519]
[1750408748134,0.33733266,106560.0,106550.0,0.49689519]
[1750408748398,0.65719039,106560.0,106550.0,0.33159055]
[1750408748615,0.68885818,106560.0,106550.0,0.39392495]
[1750408748830,0.6982423,106560.0,106550.0,0.39392495]
[1750408749488,0.7076265,106560.0,106550.0,0.23800495]
[1750408749699,0.7046265,106560.0,106550.0,0.39388495]
[1750408749886,0.68585871,106560.0,106550.0,0.39388513]
[1750408750111,0.68585871,106560.0,106550.0,0.40326977]
[1750408750328,0.69224291,106560.0,106550.0,0.40326977]
[1750408750806,0.69224335,106560.0,106550.0,0.40526977]
[1750408751024,0.87993103,106560.0,106550.0,0.2212354]
[1750408751250,0.69224335,106560.0,106550.0,0.39592504]
[1750408751502,0.68285906,106560.0,106550.0,0.40530968]
[1750408751950,0.68285906,106560.0,106550.0,0.40526968]
[1750408752185,0.67347486,106560.0,106550.0,0.40527299]
[1750408752399,0.68285906,106560.0,106550.0,0.40527299]
[1750408752871,0.68285906,106560.0,106550.0,0.38312475]
[1750408753679,0.87993112,106560.0,106550.0,0.3737402]
[1750408753901,0.87993112,106560.0,106550.0,0.1897053]
[1750408754171,0.87054718,106560.0,106550.0,0.36435555]
[1750408754630,0.87054718,106560.0,106550.0,0.37374046]
[1750408754850,0.86116306,106560.0,106550.0,0.35497038]
[1750408755071,0.85177886,106560.0,106550.0,0.35497038]
[1750408755560,0.85177886,106560.0,106550.0,0.002]
[1750408755561,5.89239448,106560.0,106550.0,0.002]
[1750408755773,5.89239448,106560.0,106550.0,0.16088]
[1750408756266,6.23239448,106560.0,106550.0,0.005]
[1750408756491,6.23239448,106560.0,106550.0,0.16088]
[1750408756712,6.23239448,106560.0,106550.0,0.15888]
[1750408756959,6.23239448,106560.0,106550.0,0.16388]
[1750408757588,6.23239448,106560.0,106550.0,0.36097038]
[1750408757849,6.27367448,106560.0,106550.0,0.16388]
[1750408759073,6.27367448,106560.0,106550.0,0.1957053]
[1750408759307,6.27367448,106560.0,106550.0,0.3515853]
[1750408759535,6.36895341,106560.0,106550.0,0.008]
[1750408759802,6.39715141,106560.0,106550.0,0.008]
[1750408760281,6.39715141,106560.0,106550.0,0.003]
[1750408760533,6.39715141,106560.0,106550.0,0.006]
[1750408761427,6.39715141,106560.0,106550.0,0.003]
[1750408761694,6.39715141,106560.0,106530.0,0.18774011]
[1750408761695,5.61999055,106540.0,106530.0,0.18774011]
[1750408761927,5.06877334,106530.0,106520.0,0.37186099]
[1750408762199,5.95749321,106530.0,106520.0,0.34369816]
[1750408762465,5.95749321,106530.0,106520.0,0.0001]
[1750408762466,5.95161978,106530.0,106520.0,0.0001]
[1750408763195,6.29254112,106530.0,106520.0,0.19738685]
[1750408763196,6.29254112,106530.0,106520.0,0.18799895]
[1750408765444,6.30183164,106530.0,106520.0,0.19838685]
[1750408765729,6.30183164,106530.0,106520.0,0.20777467]
[1750408766298,6.29244479,106530.0,106520.0,0.00124079]
[1750408766524,6.29244479,106530.0,106520.0,0.18899895]
[1750408767254,6.24995479,106530.0,106520.0,0.18899895]
[1750408767502,6.27837479,106530.0,106520.0,0.27187449]
[1750408767744,6.27958479,106530.0,106520.0,0.24077467]
[1750408768018,6.27958479,106530.0,106520.0,0.2501624]
[1750408768258,6.27958479,106530.0,106520.0,0.24077467]
[1750408768960,6.27958479,106530.0,106520.0,0.04362869]
[1750408769180,6.27958479,106530.0,106520.0,0.03424079]
[1750408769440,6.27958479,106530.0,106520.0,0.23138685]
[1750408769687,6.27019786,106530.0,106520.0,0.04362869]
[1750408769911,6.27019786,106530.0,106520.0,0.03424079]
[1750408770877,6.27019786,106530.0,106520.0,0.22099895]
[1750408771340,6.27019786,106530.0,106520.0,0.23738685]
[1750408771633,6.27019786,106530.0,106520.0,0.04962869]
[1750408771842,6.27019786,106530.0,106520.0,0.23738685]
[1750408772275,6.27019786,106530.0,106520.0,0.04962869]
[1750408772491,6.27019786,106530.0,106520.0,0.23738685]
[1750408773115,6.27019786,106530.0,106520.0,0.04024079]
[1750408774211,6.27019786,106530.0,106520.0,0.00724079]
[1750408774631,6.27019786,106530.0,106520.0,0.22779895]
[1750408774839,6.27019786,106530.0,106520.0,0.26898685]
[1750408775117,6.27019786,106530.0,106520.0,0.28776231]
[1750408775334,6.27958479,106530.0,106520.0,0.28776231]
[1750408775574,6.28776146,106530.0,106520.0,0.28776231]
[1750408776368,0.35021186,106530.0,106520.0,0.30653715]
[1750408776605,0.71126959,106530.0,106520.0,0.46241715]
[1750408777023,0.04212134,106530.0,106520.0,0.46241715]
[1750408777336,0.36197907,106530.0,106520.0,0.46241715]
[1750408777560,0.00092134,106530.0,106520.0,0.65296593]
[1750408777790,0.04212134,106530.0,106520.0,0.65296593]
[1750408778008,0.00092134,106530.0,106520.0,0.65296593]
[1750408778225,0.00092134,106530.0,106520.0,0.67505974]
[1750408779182,0.32077907,106530.0,106520.0,0.66805974]
[1750408779405,0.00292134,106530.0,106520.0,0.66905974]
[1750408780846,0.00292134,106530.0,106520.0,0.68360059]
[1750408781548,0.00292134,106530.0,106520.0,0.71121958]
[1750408781999,0.00292134,106530.0,106520.0,0.55533958]
[1750408782221,0.00292134,106530.0,106520.0,0.71141958]
[1750408782649,0.39114836,106550.0,106540.0,0.21588028]
[1750408782896,0.75220609,106550.0,106540.0,0.43476028]
[1750408783116,0.76158559,106550.0,106540.0,0.43476028]
[1750408783354,0.7615855,106550.0,106540.0,0.43476028]
[1750408783852,0.75220086,106550.0,106540.0,0.49888764]
[1750408784085,0.76358559,106550.0,106540.0,0.49888764]
[1750408784512,0.78174592,106550.0,106540.0,0.49888764]
[1750408784752,0.78174592,106550.0,106540.0,0.49988764]
[1750408784936,0.79113083,106550.0,106540.0,0.49988764]
[1750408785190,0.80051591,106550.0,106540.0,0.43576028]
[1750408785420,0.79113083,106550.0,106540.0,0.43576028]
[1750408785885,0.80051582,106550.0,106540.0,0.43576028]
[1750408786109,0.76358559,106550.0,106540.0,0.43476028]
[1750408786549,0.75420086,106550.0,106540.0,0.43476028]
[1750408786992,0.75420086,106550.0,106540.0,0.49888764]
[1750408787591,0.7448163,106550.0,106540.0,0.43476028]
[1750408787840,0.75420077,106550.0,106540.0,0.43476028]
[1750408788025,0.7448163,106550.0,106540.0,0.43476028]
[1750408788246,0.75420077,106550.0,106540.0,0.43476028]
[1750408789008,0.76358541,106550.0,106540.0,0.43476028]
[1750408790303,0.76358541,106550.0,106540.0,0.46226179]
[1750408790964,0.77297023,106550.0,106540.0,0.46226179]
[1750408791163,0.76358541,106550.0,106540.0,0.46226179]
[1750408791528,0.75420077,106550.0,106540.0,0.46226179]
[1750408793169,0.76358541,106550.0,106540.0,0.46226179]
[1750408793406,0.75420077,106550.0,106540.0,0.46226179]
[1750408793961,0.7448163,106550.0,106540.0,0.30618179]
[1750408794177,0.7448163,106550.0,106540.0,0.46302179]
[1750408794417,0.6942368,106550.0,106540.0,0.30618179]
[1750408794654,0.002,106550.0,106540.0,0.62517423]
[1750408795353,0.002,106550.0,106540.0,0.62417423]
[1750408796239,0.70105773,106560.0,106550.0,0.28076002]
[1750408796796,0.3812,106560.0,106550.0,0.28076002]
[1750408796997,0.65985773,106560.0,106550.0,0.28076002]
[1750408797209,0.70105773,106560.0,106550.0,0.3642348]
[1750408797414,0.70205773,106560.0,106550.0,0.3642348]
[1750408798172,0.70205773,106560.0,106550.0,0.28076002]
[1750408798366,0.71174001,106560.0,106550.0,0.28076002]
[1750408801402,0.39188228,106560.0,106550.0,0.28076002]
[1750408801859,0.71174001,106560.0,106550.0,0.28076002]
[1750408802244,0.67054001,106560.0,106550.0,0.28076002]
[1750408802537,0.38252,106560.0,106550.0,0.3640348]
[1750408802757,0.001,106560.0,106550.0,0.3640348]
[1750408802978,0.04252,106560.0,106550.0,0.3640348]
[1750408803228,0.001,106560.0,106550.0,0.3640348]
[1750408804801,0.001,106560.0,106550.0,0.38615958]
[1750408805332,0.001,106560.0,106550.0,0.48143851]
[1750408806411,0.32085773,106560.0,106550.0,0.54239958]
[1750408809533,0.32085773,106560.0,106550.0,0.38615958]
[1750408809743,0.32085773,106560.0,106550.0,0.54223958]
[1750408809990,0.32085773,106560.0,106550.0,0.38615958]
[1750408810218,0.32085773,106560.0,106550.0,0.54223958]
[1750408810846,0.32485771,106560.0,106550.0,0.54223958]
[1750408813102,0.32485771,106560.0,106550.0,0.38615958]
[1750408813345,0.32485771,106560.0,106550.0,0.4588448]
[1750408813849,0.00499998,106560.0,106550.0,0.4588448]
[1750408816570,0.00499998,106560.0,106550.0,0.48646938]
[1750408816791,0.32485771,106560.0,106550.0,0.48646938]
[1750408817015,0.32485771,106560.0,106550.0,0.41283448]
[1750408817252,0.3342413,106560.0,106550.0,0.56871448]
[1750408817488,0.32485771,106560.0,106550.0,0.56871448]
[1750408820743,0.34362506,106560.0,106550.0,0.56871448]
[1750408820967,0.3342413,106560.0,106550.0,0.56871448]
[1750408821384,0.35300891,106560.0,106550.0,0.56871448]
[1750408821598,0.34362497,106560.0,106550.0,0.56871448]
[1750408821860,0.91145826,106560.0,106550.0,0.30235466]
[1750408822064,0.9126195,106560.0,106550.0,0.37509516]
[1750408822277,1.23385162,106560.0,106550.0,0.02212478]
[1750408822507,6.29148403,106560.0,106550.0,0.02212478]
[1750408822713,0.20647547,106550.0,106540.0,0.25352292]
[1750408822931,0.20647547,106550.0,106530.0,0.29055197]
[1750408822932,0.01993131,106540.0,106530.0,0.29055197]
[1750408823164,0.02816009,106530.0,106520.0,0.33703184]
[1750408823370,0.23583397,106530.0,106520.0,0.30420669]
[1750408823576,0.67842187,106530.0,106520.0,0.4273866]
[1750408823811,1.19677662,106530.0,106520.0,0.00024079]
[1750408824012,6.23738995,106530.0,106520.0,0.35326685]
[1750408824247,6.23738995,106530.0,106520.0,0.36265458]
[1750408824458,6.25028995,106530.0,106520.0,0.18799895]
[1750408824661,6.24190302,106530.0,106520.0,0.00024079]
[1750408825610,6.24090302,106530.0,106520.0,0.00024079]
[1750408825813,6.24090302,106530.0,106520.0,0.19738685]
[1750408826244,6.24090302,106530.0,106520.0,0.20677458]
[1750408826245,6.22800302,106530.0,106520.0,0.20677458]
[1750408826453,6.22800302,106530.0,106520.0,0.20877458]
[1750408826874,6.22800302,106530.0,106520.0,0.20238685]
[1750408827090,6.22800302,106530.0,106520.0,0.00524079]
[1750408827310,6.32679493,106530.0,106520.0,0.00524079]
[1750408828225,6.32679493,106530.0,106520.0,0.00024079]
[1750408828652,6.32679493,106530.0,106520.0,0.00124079]
[1750408830017,6.31389493,106530.0,106520.0,0.00124079]
[1750408830646,6.32328195,106530.0,106520.0,0.18999895]
[1750408830860,6.32328195,106530.0,106520.0,0.00224079]
[1750408831272,6.32328195,106530.0,106520.0,0.18999895]
[1750408831504,6.32328195,106530.0,106520.0,0.00224079]
[1750408833516,6.33618195,106530.0,106520.0,0.00224079]
[1750408834384,6.32328195,106530.0,106520.0,0.00224079]
[1750408838335,6.47920195,106530.0,106520.0,0.00224079]
[1750408839600,6.49210195,106530.0,106520.0,0.00224079]
[1750408840952,6.47920195,106530.0,106520.0,0.00224079]
[1750408842068,6.50740695,106530.0,106520.0,0.00224079]
[1750408846246,6.50740695,106530.0,106520.0,0.03294079]
[1750408846467,6.50740695,106530.0,106520.0,0.00224079]
[1750408846954,6.50506542,106530.0,106520.0,0.00224079]
[1750408847183,6.52260744,106530.0,106520.0,0.00224079]
[1750408847454,6.53137976,106530.0,106520.0,0.00224079]
[1750408847698,5.90092135,106520.0,106510.0,1.0001]
[1750408847941,6.18501389,106520.0,106510.0,1.00024087]
[1750408848179,6.18502292,106520.0,106510.0,1.00024087]
[1750408849394,6.52502292,106520.0,106510.0,1.00024087]
[1750408850773,5.57777579,106510.0,106490.0,0.0001]
[1750408850996,5.58840143,106490.0,106480.0,0.0001]
[1750408851234,6.73769846,106490.0,106480.0,0.00023482]
[1750408851698,6.22813541,106480.0,106470.0,0.0001]
[1750408851940,6.5034629,106480.0,106470.0,0.00023509]
[1750408852877,6.35689747,106480.0,106470.0,0.00023509]
[1750408853100,6.24539091,106480.0,106470.0,0.06333509]
[1750408853339,6.25815543,106480.0,106470.0,0.06333509]
[1750408853563,6.57801308,106480.0,106470.0,0.06333509]
[1750408853802,6.57798838,106480.0,106470.0,0.06333509]
[1750408855591,6.5692235,106480.0,106470.0,0.06333509]
[1750408855811,6.55169374,106480.0,106470.0,0.06316022]
[1750408858367,6.55177374,106480.0,106470.0,0.06316022]
[1750408859476,6.54520008,106480.0,106470.0,0.06316022]
[1750408859700,6.55176036,106480.0,106470.0,0.06316022]
[1750408860264,5.74499472,106480.0,106470.0,0.26039887]
[1750408860358,5.64349476,106480.0,106470.0,0.2791827]
[1750408860578,5.79566606,106480.0,106470.0,0.28857439]
[1750408861025,5.98349476,106480.0,106470.0,0.26039887]
[1750408861263,5.96171234,106480.0,106470.0,0.26039887]
[1750408861497,5.952321,106480.0,106470.0,0.06416022]
[1750408861732,6.36865766,106480.0,106470.0,0.03136022]
[1750408861961,6.36465766,106480.0,106470.0,0.03136022]
[1750408862202,6.36465766,106480.0,106470.0,0.03236022]
[1750408862445,6.39287666,106480.0,106470.0,0.03236022]
[1750408862657,6.39287666,106480.0,106470.0,0.06296022]
[1750408863741,5.45937646,106480.0,106470.0,0.26959066]
[1750408863962,5.7192123,106480.0,106470.0,0.27898235]
[1750408864187,5.72860311,106480.0,106470.0,0.27898235]
[1750408864408,5.76984311,106480.0,106470.0,0.27898235]
[1750408864636,0.31985773,106490.0,106480.0,0.21598536]
[1750408864856,5.58569338,106500.0,106490.0,0.27279171]
[1750408865087,6.04918531,106500.0,106490.0,0.27309171]
[1750408865323,6.04918531,106500.0,106490.0,0.28248191]
[1750408865324,6.09981462,106500.0,106490.0,0.28248191]
[1750408865547,6.09042531,106500.0,106490.0,0.25431106]
[1750408865979,6.41028304,106500.0,106490.0,0.25431106]
[1750408866446,6.40089364,106500.0,106490.0,0.0662]
[1750408866730,6.41165165,106500.0,106490.0,0.0333]
[1750408866948,6.56761165,106500.0,106490.0,0.0333]
[1750408867812,6.56105364,106500.0,106490.0,0.0333]
[1750408868048,6.56761178,106500.0,106490.0,0.0333]
[1750408868256,6.56961178,106500.0,106490.0,0.0333]
[1750408868888,6.56961178,106500.0,106480.0,0.0629]
[1750408868889,0.53720143,106490.0,106480.0,0.0629]
[1750408869115,6.04357809,106490.0,106480.0,0.0629]
[1750408870329,6.04457809,106490.0,106480.0,0.0629]
[1750408872748,6.04557809,106490.0,106480.0,0.0629]
[1750408873602,6.04557809,106490.0,106480.0,0.2507287]
[1750408873842,6.05496837,106490.0,106480.0,0.2507287]
[1750408874068,6.04557809,106490.0,106480.0,0.2507287]
[1750408875651,6.04557809,106490.0,106480.0,0.0629]
[1750408876694,6.05215366,106490.0,106480.0,0.0629]
[1750408876942,6.08036966,106490.0,106480.0,0.0629]
[1750408877219,5.58722013,106480.0,106470.0,0.24850592]
[1750408877485,5.58722013,106480.0,106470.0,0.26729045]
[1750408877486,6.22693559,106480.0,106470.0,0.26729045]
[1750408877711,5.91646903,106480.0,106470.0,0.26729045]
[1750408877947,5.91646903,106480.0,106470.0,0.25789823]
[1750408878663,5.90707786,106480.0,106470.0,0.25789823]